bitfinex/quotes_SOLUSD_20240908
["timestamp","ask_amount","ask_price","bid_price","bid_amount"]
[1725793792464,68.0,130.87,130.82,1.53230649]
[1725793792667,68.0,130.87,130.8,20.0]
[1725793792668,68.0,130.87,130.83,1.53230649]
[1725793792882,68.0,130.87,130.84,1.53230649]
[1725793793161,68.0,130.87,130.8,20.0]
[1725793793368,68.0,130.87,130.81,1.53230741]
[1725793793543,68.0,130.87,130.82,1.53230741]
[1725793793743,68.0,130.87,130.83,1.53230741]
[1725793793943,68.0,130.87,130.84,1.53230741]
[1725793794145,68.0,130.87,130.8,20.0]
[1725793794362,68.0,130.87,130.81,1.53230649]
[1725793794561,68.0,130.87,130.8,20.0]
[1725793794562,68.0,130.87,130.82,1.53230649]
[1725793794759,68.0,130.87,130.83,1.53230649]
[1725793795068,68.0,130.87,130.84,1.53230649]
[1725793795376,68.0,130.87,130.8,20.0]
[1725793796058,68.0,130.87,130.81,1.53230741]
[1725793796569,68.0,130.87,130.8,20.0]
[1725793798767,23.0,130.89,130.8,20.0]
[1725793800143,68.0,130.88,130.8,20.0]
[1725793805481,22.5406,130.9,130.8,20.0]
[1725793805482,45.5406,130.9,130.8,20.0]
[1725793806855,45.0,130.89,130.8,20.0]
[1725793808662,68.0,130.89,130.8,20.0]
[1725793813448,68.0,130.89,130.81,6.6011]
[1725793813749,68.0,130.89,130.82,20.0]
[1725793814177,68.0,130.89,130.83,16.6031]
[1725793814371,23.0,130.91,130.83,16.6031]
[1725793814572,23.0,130.91,130.84,20.0]
[1725793814771,21.8696,130.93,130.84,20.0]
[1725793815481,23.0,130.92,130.85,1.52817242]
[1725793815655,23.0,130.92,130.84,21.5281395]
[1725793815860,32.35746777,130.96,130.85,6.6011]
[1725793816053,32.35746777,130.96,130.86,20.0]
[1725793816578,32.35746777,130.96,130.86,21.52800905]
[1725793816579,23.0,130.95,130.86,21.52800905]
[1725793816779,23.0,130.95,130.86,20.0]
[1725793817081,23.0,130.95,130.87,1.52801337]
[1725793817268,23.0,130.94,130.87,16.6031]
[1725793817460,23.0,130.95,130.87,16.6031]
[1725793817776,21.8696,130.96,130.87,16.6031]
[1725793817978,0.3,130.98,130.87,16.6031]
[1725793818275,21.8696,130.99,130.87,18.13080695]
[1725793818485,23.0,130.98,130.87,18.13080695]
[1725793819260,68.0,130.97,130.87,18.13080695]
[1725793819458,23.0,130.97,130.87,16.6031]
[1725793819776,23.0,130.97,130.88,20.0]
[1725793820384,23.0,130.98,130.88,20.0]
[1725793820758,68.0,130.97,130.88,20.0]
[1725793822389,21.8696,131.02,130.9,16.6031]
[1725793822581,21.8696,131.02,130.91,65.0]
[1725793823205,261.4853,131.05,130.92,23.2042]
[1725793823477,261.4853,131.05,130.93,20.0]
[1725793823478,23.0,131.04,130.93,20.0]
[1725793825563,6.5853,131.05,130.93,20.0]
[1725793825564,23.0,131.02,130.93,20.0]
[1725793825763,45.0,131.01,130.93,20.0]
[1725793833190,45.0,131.02,130.93,20.0]
[1725793834394,68.0,131.03,130.93,20.0]
[1725793835486,68.0,131.03,130.92,23.2042]
[1725793835703,23.0,131.01,130.92,23.2042]
[1725793835864,23.0,130.99,130.89,22.4605]
[1725793836291,23.0,130.97,130.89,22.4605]
[1725793836496,68.0,130.96,130.89,16.3746]
[1725793836790,45.0,130.95,130.89,16.3746]
[1725793839789,23.0,130.99,130.89,16.3746]
[1725793839989,23.0,130.97,130.89,16.3746]
[1725793840294,45.0,130.96,130.89,16.3746]
[1725793843498,45.0,130.97,130.89,16.3746]
[1725793843684,68.0,130.97,130.89,16.3746]
[1725793853081,6.0747,131.0,130.9,26.4865]
[1725793853280,15.3864,131.02,130.9,26.4865]
[1725793853902,15.3864,131.02,130.91,15.3102]
[1725793854114,23.0,131.01,130.91,15.3102]
[1725793855298,68.0,131.0,130.91,15.3102]
[1725793857196,68.0,131.0,130.92,20.0]
[1725793858210,45.0,131.0,130.92,20.0]
[1725793858412,23.0,131.01,130.92,20.0]
[1725793859702,68.0,131.0,130.92,20.0]
[1725793866119,68.0,131.0,130.92,21.53085628]
[1725793867117,68.0,131.0,130.92,20.0]
[1725793867437,68.0,131.0,130.92,21.53084296]
[1725793870729,68.0,131.0,130.92,20.0]
[1725793870935,68.0,131.0,130.92,21.53085629]
[1725793873838,68.0,131.0,130.92,20.0]
[1725793874046,68.0,131.0,130.92,21.53085629]
[1725793874425,68.0,131.0,130.92,23.06171258]
[1725793875248,68.0,131.0,130.93,1.53085629]
[1725793877450,68.0,131.0,130.92,20.0]
[1725793877743,68.0,131.0,130.93,1.53085372]
[1725793883347,23.0,131.02,130.93,1.53085372]
[1725793883551,16.80756777,131.06,130.94,9.32368861]
[1725793883768,16.80756777,131.06,130.95,39.54443076]
[1725793883769,6.3197,131.06,130.95,39.54443076]
[1725793884052,6.3197,131.06,130.96,1.52677497]
[1725793884352,6.3197,131.06,130.95,38.01727646]
[1725793884529,23.0,131.05,130.97,1.53047646]
[1725793884728,23.0,131.05,130.95,36.4868]
[1725793885031,23.0,131.05,130.96,1.53047041]
[1725793885552,22.5,131.05,130.96,1.53047041]
[1725793887250,45.0,131.04,130.96,1.53047041]
[1725793887430,45.0,131.04,130.98,6.2658]
[1725793890042,22.0,131.07,130.98,6.2658]
[1725793890248,67.0,131.06,130.99,16.4868]
[1725793890449,67.0,131.06,130.99,18.0133285]
[1725793892750,23.0,131.09,130.99,16.4868]
[1725793892956,23.0,131.09,131.0,22.2931]
[1725793893957,25.99665902,131.11,131.0,22.2931]
[1725793894175,23.0,131.09,131.0,22.2931]
[1725793894379,68.0,131.08,131.0,22.2931]
[1725793894679,23.0,131.08,131.0,22.2931]
[1725793895181,23.0,131.09,131.0,22.2931]
[1725793895373,68.0,131.08,131.0,22.2931]
[1725793895574,23.0,131.08,131.0,22.2931]
[1725793896373,23.0,131.09,131.0,22.2931]
[1725793896673,68.0,131.08,131.0,22.2931]
[1725793896872,23.0,131.08,131.0,22.2931]
[1725793897652,23.0,131.09,131.0,22.2931]
[1725793897882,68.0,131.08,131.0,22.2931]
[1725793902057,45.0,131.08,131.01,20.0]
[1725793903971,23.0,131.09,131.01,20.0]
[1725793904477,23.0,131.11,131.01,20.0]
[1725793904667,23.0,131.09,131.01,20.0]
[1725793905768,0.8562931,131.12,131.05,22.2931]
[1725793905973,0.8562931,131.12,131.06,20.0]
[1725793913083,0.8562931,131.12,131.06,21.52549649]
[1725793913488,0.8562931,131.12,131.06,20.0]
[1725793968424,22.8562931,131.15,131.06,20.0]
[1725793968628,67.7125862,131.14,131.06,20.0]
[1725793973122,2.9501422,131.18,131.07,15.7066]
[1725793973123,22.96,131.18,131.07,15.7066]
[1725793973303,22.96,131.18,131.08,20.0]
[1725793973505,22.96,131.18,131.09,6.3682]
[1725793973733,22.96,131.18,131.11,15.7066]
[1725793976829,67.96,131.17,131.11,15.7066]
[1725793978525,66.96,131.17,131.11,15.7066]
[1725793982621,66.96,131.17,131.09,6.3682]
[1725793984809,22.96,131.17,131.09,6.3682]
[1725793985016,22.96,131.18,131.09,6.3682]
[1725793987031,6.0168,131.19,131.09,6.3682]
[1725793987032,22.96,131.16,131.09,6.3682]
[1725793987210,22.96,131.17,131.1,15.7066]
[1725793987415,6.5182,131.22,131.11,20.0]
[1725793988433,22.96,131.21,131.11,20.0]
[1725793989841,22.96,131.19,131.11,20.0]
[1725793990415,22.96,131.17,131.11,20.0]
[1725793991350,22.96,131.19,131.11,20.0]
[1725793991537,67.96,131.18,131.11,20.0]
[1725793991726,22.96,131.18,131.11,20.0]
[1725793992432,22.96,131.19,131.11,20.0]
[1725793992633,22.96,131.17,131.11,20.0]
[1725793993535,22.96,131.16,131.11,20.0]
[1725793994617,22.96,131.19,131.11,20.0]
[1725793994822,22.96,131.17,131.11,20.0]
[1725793996637,22.96,131.17,131.1,15.7066]
[1725793996638,22.96,131.15,131.1,15.7066]
[1725793996850,22.96,131.13,131.1,15.7066]
[1725793999126,22.96,131.17,131.1,15.7066]
[1725793999444,22.96,131.15,131.1,15.7066]
[1725793999653,22.96,131.13,131.1,15.7066]
[1725794000619,22.96,131.15,131.1,15.7066]
[1725794000944,67.96,131.14,131.1,15.7066]
[1725794006136,45.0,131.14,131.1,15.7066]
[1725794007832,22.96,131.13,131.1,15.7066]
[1725794008041,45.0,131.14,131.1,15.7066]
[1725794009230,22.96,131.17,131.1,15.7066]
[1725794009436,6.664,131.18,131.1,15.7066]
[1725794009437,22.96,131.15,131.1,15.7066]
[1725794010554,22.96,131.17,131.1,15.7066]
[1725794010859,22.96,131.17,131.1,22.2177]
[1725794011573,22.96,131.19,131.1,22.2177]
[1725794011742,22.96,131.17,131.1,22.2177]
[1725794017543,22.96,131.17,131.11,1.52517203]
[1725794017746,22.96,131.17,131.1,22.2177]
[1725794026045,22.96,131.17,131.11,20.0]
[1725794028178,67.96,131.16,131.11,20.0]
[1725794028471,22.96,131.16,131.11,20.0]
[1725794029471,22.96,131.17,131.11,20.0]
[1725794029677,67.96,131.16,131.11,20.0]
[1725794029845,22.96,131.16,131.11,20.0]
[1725794030770,22.96,131.17,131.11,20.0]
[1725794030976,67.96,131.16,131.11,20.0]
[1725794031265,22.96,131.16,131.11,20.0]
[1725794031971,45.0,131.18,131.11,20.0]
[1725794031972,22.96,131.17,131.11,20.0]
[1725794032148,67.96,131.16,131.11,20.0]
[1725794032466,22.96,131.16,131.11,20.0]
[1725794033372,22.96,131.17,131.11,20.0]
[1725794033558,45.0,131.18,131.11,20.0]
[1725794033559,67.96,131.16,131.11,20.0]
[1725794033758,22.96,131.16,131.11,20.0]
[1725794034483,22.96,131.17,131.11,20.0]
[1725794034662,67.96,131.16,131.11,20.0]
[1725794034863,22.96,131.16,131.11,20.0]
[1725794035867,22.96,131.17,131.11,20.0]
[1725794036074,67.96,131.16,131.11,20.0]
[1725794036265,22.96,131.16,131.11,20.0]
[1725794037047,22.96,131.17,131.11,20.0]
[1725794037252,67.96,131.16,131.11,20.0]
[1725794037471,67.96,131.16,131.1,22.2177]
[1725794039059,67.96,131.16,131.1,15.7066]
[1725794049979,83.4317,131.16,131.07,6.1304]
[1725794050682,83.4317,131.16,131.07,7.65608253]
[1725794051073,83.4317,131.16,131.07,6.1304]
[1725794053470,1.32907518,131.15,131.07,6.1304]
[1725794063001,83.4317,131.16,131.07,6.1304]
[1725794070606,93.07399,131.16,131.07,6.1304]
[1725794070912,143.07399,131.16,131.07,6.1304]
[1725794073919,22.96,131.14,131.07,6.1304]
[1725794074109,22.96,131.12,131.06,16.4809]
[1725794074282,22.96,131.1,131.06,16.4809]
[1725794074789,22.96,131.08,131.06,16.4809]
[1725794076202,1.32915483,131.19,131.1,14.5286]
[1725794076391,22.96,131.2,131.11,23.93928609]
[1725794076703,22.96,131.2,131.12,14.5286]
[1725794076899,22.96,131.2,131.13,20.0]
[1725794077293,22.96,131.23,131.13,20.0]
[1725794078900,22.96,131.21,131.13,20.0]
[1725794079209,22.96,131.19,131.13,20.0]
[1725794080724,22.96,131.19,131.13,21.52493652]
[1725794087108,22.96,131.19,131.13,20.0]
[1725794088618,22.96,131.19,131.13,21.52493378]
[1725794092018,22.96,131.19,131.13,20.0]
[1725794097021,67.96,131.18,131.13,20.0]
[1725794097218,22.96,131.18,131.13,20.0]
[1725794097605,22.96,131.19,131.14,1.52498978]
[1725794098601,22.96,131.19,131.13,20.0]
[1725794102926,45.0,131.2,131.14,20.5823]
[1725794103105,22.96,131.24,131.15,20.0]
[1725794103308,22.96,131.22,131.15,20.0]
[1725794103516,22.96,131.2,131.15,20.0]
[1725794104523,22.96,131.22,131.15,20.0]
[1725794104706,67.96,131.21,131.15,20.0]
[1725794107902,67.96,131.21,131.14,20.5823]
[1725794108923,67.96,131.21,131.11,6.0479]
[1725794109118,67.96,131.21,131.11,20.5823]
[1725794110630,67.96,131.21,131.12,20.0]
[1725794114047,22.96,131.21,131.12,20.0]
[1725794114807,24.28851386,131.21,131.12,20.0]
[1725794115416,22.96,131.19,131.12,20.0]
[1725794115621,45.0,131.18,131.12,20.0]
[1725794116016,67.96,131.18,131.08,14.5344]
[1725794116221,88.146,131.16,131.04,14.5344]
[1725794116416,88.446,131.16,131.04,14.5344]
[1725794116632,22.96,131.14,131.04,14.5344]
[1725794116926,22.96,131.12,131.04,14.5344]
[1725794117328,45.0,131.11,131.04,14.5344]
[1725794117632,15.486,131.16,131.05,1.52567932]
[1725794117835,45.0,131.15,131.04,14.5344]
[1725794118005,45.0,131.15,131.05,20.0]
[1725794118417,22.96,131.14,131.05,20.0]
[1725794118617,45.0,131.13,131.05,20.0]
[1725794119913,67.96,131.14,131.05,20.0]
[1725794123943,45.0,131.14,131.07,14.5344]
[1725794124133,45.0,131.15,131.08,20.0]
[1725794124329,67.96,131.15,131.08,20.0]
[1725794125211,45.0,131.15,131.08,20.0]
[1725794127822,67.96,131.15,131.08,20.0]
[1725794128223,45.0,131.15,131.08,20.0]
[1725794128444,45.0,131.16,131.08,20.0]
[1725794129145,67.96,131.17,131.08,20.0]
[1725794134424,79.39673404,131.17,131.08,20.0]
[1725794135951,79.39673404,131.17,131.07,14.5344]
[1725794138624,22.96,131.15,131.07,14.5344]
[1725794138846,22.96,131.13,131.07,14.5344]
[1725794139156,22.96,131.11,131.07,14.5344]
[1725794139448,45.0,131.1,131.07,14.5344]
[1725794144744,67.96,131.11,131.07,14.5344]
[1725794148935,67.96,131.11,131.06,6.4259]
[1725794151145,45.0,131.11,131.06,6.4259]
[1725794151339,67.96,131.12,131.06,6.4259]
[1725794151541,45.0,131.12,131.06,6.4259]
[1725794152261,67.96,131.12,131.06,6.4259]
[1725794153434,22.96,131.14,131.06,6.4259]
[1725794154733,67.96,131.13,131.06,6.4259]
[1725794155333,45.0,131.13,131.06,6.4259]
[1725794155534,67.96,131.13,131.06,6.4259]
[1725794155736,45.0,131.13,131.06,6.4259]
[1725794155942,45.0,131.14,131.06,6.4259]
[1725794157477,67.96,131.14,131.06,6.4259]
[1725794162367,80.06255453,131.14,131.06,6.4259]
[1725794184278,23.1694313,131.15,131.07,14.5344]
[1725794185348,45.0,131.14,131.07,14.5344]
[1725794185590,67.96,131.14,131.07,14.5344]
[1725794188179,0.2094313,131.15,131.07,14.5344]
[1725794188587,0.2094313,131.15,131.08,20.0]
[1725794189267,68.1694313,131.15,131.08,20.0]
[1725794189472,79.03598945,131.15,131.08,20.0]
[1725794190072,79.03598945,131.15,131.07,14.5344]
[1725794197284,79.03598945,131.15,131.08,1.52925296]
[1725794197498,79.03598945,131.15,131.09,1.52925296]
[1725794197700,79.03598945,131.15,131.07,14.5344]
[1725794197880,79.03598945,131.15,131.08,1.52927959]
[1725794198174,79.03598945,131.15,131.09,1.52927959]
[1725794198372,79.03598945,131.15,131.07,14.5344]
[1725794198601,79.03598945,131.15,131.08,1.52927913]
[1725794198804,79.03598945,131.15,131.09,1.52927913]
[1725794199007,79.03598945,131.15,131.08,1.52927913]
[1725794199210,79.03598945,131.15,131.09,1.52927913]
[1725794199501,79.03598945,131.15,131.08,1.52927913]
[1725794199694,79.03598945,131.15,131.07,14.5344]
[1725794199695,79.03598945,131.15,131.09,1.52927913]
[1725794199894,79.03598945,131.15,131.08,1.52927913]
[1725794200104,79.03598945,131.15,131.07,14.5344]
[1725794200285,79.03598945,131.15,131.09,1.52931475]
[1725794200485,79.03598945,131.15,131.08,1.52931475]
[1725794200780,79.03598945,131.15,131.09,1.52931475]
[1725794200981,79.03598945,131.15,131.08,1.52931475]
[1725794201182,79.03598945,131.15,131.09,1.52931475]
[1725794201394,79.03598945,131.15,131.08,1.52931475]
[1725794201701,79.03598945,131.15,131.09,1.52931475]
[1725794201996,79.03598945,131.15,131.08,1.52931475]
[1725794202198,79.03598945,131.15,131.09,1.52931475]
[1725794202410,79.03598945,131.15,131.08,1.52931475]
[1725794202710,79.03598945,131.15,131.09,1.52931475]
[1725794202879,79.03598945,131.15,131.08,1.52931475]
[1725794203077,79.03598945,131.15,131.09,1.52931475]
[1725794203314,79.03598945,131.15,131.08,1.52931475]
[1725794203506,79.03598945,131.15,131.09,1.52931475]
[1725794203801,79.03598945,131.15,131.08,1.52931475]
[1725794204108,79.03598945,131.15,131.09,1.52931475]
[1725794204304,79.03598945,131.15,131.08,1.52931475]
[1725794204505,79.03598945,131.15,131.09,1.52931475]
[1725794204689,79.03598945,131.15,131.08,1.52931475]
[1725794205006,79.03598945,131.15,131.09,1.52931475]
[1725794205181,79.03598945,131.15,131.08,1.52931475]
[1725794205379,79.03598945,131.15,131.09,1.52931475]
[1725794205579,79.03598945,131.15,131.08,1.52931475]
[1725794205778,79.03598945,131.15,131.09,1.52931475]
[1725794206001,79.03598945,131.15,131.08,1.52931475]
[1725794206313,79.03598945,131.15,131.09,1.52931475]
[1725794206612,79.03598945,131.15,131.07,14.5344]
[1725794207107,79.03598945,131.15,131.08,1.52929675]
[1725794207408,79.03598945,131.15,131.09,1.52929675]
[1725794207702,79.03598945,131.15,131.08,1.52929675]
[1725794207921,79.03598945,131.15,131.08,1.52945209]
[1725794208492,79.03598945,131.15,131.07,14.5344]
[1725794208809,79.03598945,131.15,131.08,1.52945657]
[1725794209781,79.03598945,131.15,131.07,14.5344]
[1725794210196,79.03598945,131.15,131.08,1.52943746]
[1725794211413,79.03598945,131.15,131.08,1.52940325]
[1725794213313,79.03598945,131.15,131.08,1.52942094]
[1725794213991,79.03598945,131.15,131.07,14.5344]
[1725794217620,0.2094313,131.15,131.08,20.0]
[1725794217794,0.2094313,131.15,131.09,51.4335]
[1725794217992,0.2094313,131.15,131.1,36.05917156]
[1725794218194,0.2094313,131.15,131.11,45.0]
[1725794218410,0.2094313,131.15,131.12,20.0]
[1725794219109,0.2094313,131.15,131.11,20.0]
[1725794224219,0.2094313,131.15,131.13,6.4335]
[1725794224416,0.2094313,131.15,131.14,21.52444765]
[1725794224920,0.2094313,131.15,131.14,20.0]
[1725794225211,0.2094313,131.15,131.14,36.05884681]
[1725794225719,0.2094313,131.15,131.14,79.5344]
[1725794226694,6.5603,131.25,131.14,65.0]
[1725794226900,15.0879,131.27,131.15,45.0]
[1725794227203,15.0879,131.27,131.16,20.0]
[1725794227420,38.0479,131.27,131.16,20.0]
[1725794227717,38.0479,131.27,131.16,34.325]
[1725794227933,36.0479,131.27,131.16,34.325]
[1725794228302,45.0,131.26,131.16,34.325]
[1725794229104,36.0479,131.27,131.16,34.325]
[1725794230420,36.0479,131.27,131.17,45.0]
[1725794230618,36.0479,131.27,131.18,20.0]
[1725794231334,45.0,131.26,131.17,20.0]
[1725794231556,67.96,131.26,131.17,20.0]
[1725794233431,67.96,131.26,131.17,21.52431997]
[1725794233613,67.96,131.26,131.17,20.0]
[1725794233913,22.96,131.24,131.17,20.0]
[1725794234114,45.0,131.23,131.17,20.0]
[1725794235710,67.96,131.23,131.17,20.0]
[1725794236242,67.96,131.23,131.16,14.325]
[1725794236243,67.96,131.23,131.13,21.8018]
[1725794236414,22.96,131.21,131.13,15.3683]
[1725794236614,45.0,131.2,131.13,15.3683]
[1725794236811,67.96,131.2,131.1,22.0296]
[1725794237016,67.96,131.2,131.07,7.84387281]
[1725794237017,29.5129,131.19,131.07,15.3683]
[1725794237424,45.0,131.18,131.07,15.3683]
[1725794237624,67.93,131.18,131.07,15.3683]
[1725794237823,45.0,131.18,131.07,15.3683]
[1725794238528,45.0,131.18,131.08,45.0]
[1725794238726,67.93,131.18,131.08,65.0]
[1725794239028,6.5529,131.19,131.09,1.52508241]
[1725794239234,22.1373,131.22,131.08,65.0]
[1725794239621,22.93,131.21,131.08,65.0]
[1725794241119,45.0,131.2,131.08,65.0]
[1725794243135,45.0,131.21,131.09,8.18603451]
[1725794243350,45.0,131.21,131.11,15.3683]
[1725794243514,45.0,131.21,131.12,66.52460674]
[1725794245339,45.0,131.21,131.12,65.0]
[1725794246617,45.0,131.21,131.13,1.5246115]
[1725794246816,22.1373,131.22,131.13,1.5246115]
[1725794247036,15.5844,131.22,131.13,1.5246115]
[1725794247235,22.93,131.24,131.13,6.6613]
[1725794247441,45.0,131.23,131.14,65.0]
[1725794250027,29.4829,131.25,131.15,16.89259322]
[1725794250227,45.0,131.24,131.16,20.0]
[1725794252620,22.93,131.25,131.17,1.5242709]
[1725794252845,22.93,131.25,131.16,20.0]
[1725794258727,45.0,131.24,131.16,20.0]
[1725794264456,67.93,131.25,131.16,20.0]
[1725794268834,22.93,131.27,131.17,6.4626]
[1725794269037,45.0,131.26,131.18,20.0]
[1725794269462,45.0,131.26,131.19,1.52404948]
[1725794269633,45.0,131.26,131.18,20.0]
[1725794269838,22.93,131.27,131.19,15.5564]
[1725794270052,22.93,131.27,131.2,20.0]
[1725794271041,67.93,131.26,131.2,20.0]
[1725794274470,45.0,131.26,131.2,20.0]
[1725794274660,67.93,131.27,131.2,20.0]
[1725794275255,45.0,131.27,131.2,20.0]
[1725794275659,67.93,131.27,131.2,20.0]
[1725794276057,45.0,131.27,131.2,20.0]
[1725794278070,67.93,131.27,131.2,20.0]
[1725794278368,45.0,131.27,131.2,20.0]
[1725794283768,67.93,131.27,131.2,20.0]
[1725794284356,67.93,131.27,131.2,21.52786675]
[1725794285765,67.93,131.27,131.2,21.52786889]
[1725794286379,67.93,131.27,131.21,1.52786889]
[1725794286779,45.0,131.27,131.21,1.52786889]
[1725794287075,68.7908305,131.28,131.22,1.52786889]
[1725794287277,68.7908305,131.28,131.23,1.52786889]
[1725794287453,68.7908305,131.28,131.22,1.52786889]
[1725794287654,68.7908305,131.28,131.23,1.52786889]
[1725794287871,68.7908305,131.28,131.21,3.97245911]
[1725794288073,68.7908305,131.28,131.22,1.52786889]
[1725794288266,68.7908305,131.28,131.23,1.52786889]
[1725794288472,68.7908305,131.28,131.21,3.97245911]
[1725794288678,68.7908305,131.28,131.22,1.52786889]
[1725794288973,68.7908305,131.28,131.23,1.52786889]
[1725794289152,68.7908305,131.28,131.22,1.52786889]
[1725794289358,68.7908305,131.28,131.23,1.52786889]
[1725794289687,68.7908305,131.28,131.2,20.0]
[1725794290180,68.7908305,131.28,131.23,1.52756535]
[1725794295193,68.7908305,131.28,131.2,20.0]
[1725794306803,68.7908305,131.28,131.19,15.5564]
[1725794307815,22.93,131.26,131.17,6.4626]
[1725794307992,22.93,131.24,131.17,6.4626]
[1725794308385,22.93,131.22,131.17,6.4626]
[1725794308894,45.0,131.21,131.17,6.4626]
[1725794310211,22.93,131.26,131.17,6.4626]
[1725794310508,22.93,131.24,131.17,6.4626]
[1725794310805,6.2935,131.27,131.17,6.4626]
[1725794310806,22.93,131.26,131.18,1.52441667]
[1725794311001,22.93,131.26,131.17,6.4626]
[1725794312391,45.0,131.25,131.17,6.4626]
[1725794314709,67.93,131.26,131.18,15.0834]
[1725794314897,0.8608305,131.28,131.19,20.0]
[1725794315095,45.8608305,131.28,131.19,20.0]
[1725794315611,0.8608305,131.28,131.19,20.0]
[1725794315801,23.7908305,131.28,131.19,20.0]
[1725794316885,45.0,131.27,131.19,20.0]
[1725794317609,45.0,131.27,131.2,21.2185]
[1725794318000,45.0,131.27,131.21,20.0]
[1725794325816,0.8608305,131.28,131.21,20.0]
[1725794342016,0.8608305,131.28,131.2,21.2185]
[1725794342626,23.7908305,131.28,131.2,21.2185]
[1725794342826,22.93,131.26,131.2,21.2185]
[1725794343061,67.93,131.25,131.2,15.0834]
[1725794343219,22.93,131.25,131.2,15.0834]
[1725794343535,45.0,131.24,131.2,15.0834]
[1725794345141,67.93,131.24,131.17,16.2537]
[1725794345342,67.93,131.24,131.18,20.0]
[1725794346241,67.93,131.24,131.17,16.2537]
[1725794350636,67.93,131.24,131.17,17.78185731]
[1725794351323,67.93,131.24,131.17,16.2537]
[1725794353747,67.93,131.24,131.16,6.2702]
[1725794355738,67.93,131.24,131.15,1.52820145]
[1725794355941,67.93,131.24,131.15,21.52820145]
[1725794356145,67.93,131.24,131.15,20.0]
[1725794357730,67.93,131.24,131.14,17.5455182]
[1725794358146,67.93,131.24,131.1,2.44530913]
[1725794358147,22.93,131.22,131.11,3.97362733]
[1725794358342,15.9135,131.23,131.12,1.5283182]
[1725794358343,22.93,131.2,131.12,1.5283182]
[1725794358553,45.0,131.21,131.1,24.48710913]
[1725794358554,67.93,131.19,131.11,1.5283182]
[1725794358759,45.0,131.18,131.11,1.5283182]
[1725794359062,45.0,131.18,131.07,2.44530913]
[1725794359063,83.8435,131.18,131.08,3.97362733]
[1725794359234,83.8435,131.18,131.08,1.5283182]
[1725794359235,6.6268,131.17,131.08,1.5283182]
[1725794359439,67.93,131.16,131.07,17.5455182]
[1725794360154,67.93,131.16,131.07,16.0172]
[1725794360669,67.93,131.16,131.08,20.0]
[1725794361236,67.93,131.16,131.09,1.52559457]
[1725794361441,67.93,131.16,131.08,20.0]
[1725794362066,67.93,131.16,131.09,1.52534511]
[1725794362558,67.93,131.16,131.08,20.0]
[1725794362961,67.93,131.16,131.08,21.52535861]
[1725794363338,67.93,131.16,131.08,20.0]
[1725794363739,67.93,131.16,131.08,21.52535876]
[1725794364154,6.6268,131.17,131.09,1.52525521]
[1725794364358,15.9135,131.18,131.1,1.52500212]
[1725794364663,15.9135,131.18,131.08,20.0]
[1725794370978,15.9135,131.18,131.09,46.52499266]
[1725794371170,45.4703,131.21,131.11,6.0246]
[1725794371374,45.0,131.2,131.12,1.52488453]
[1725794371676,67.93,131.2,131.12,1.52488453]